{"text_format":"3","workbook":"xlsx","n_sheets":3,"sheets":["Dimensionnement","Quantitatif des pièces - Offre","Données"],"not_rendered":{"images":7,"macros":1,"defined_names":18},"read":"whole","date_system":"1900"}

{"sheet":"Dimensionnement","index":0,"n_rows":72,"n_cols":15,"rows_kept":72,"merged":[[2,3,4,8],[9,3,9,7],[15,2,15,3],[15,5,15,6],[16,2,16,3],[26,1,26,8],[27,1,27,8],[28,1,28,8],[29,1,29,8],[30,1,30,8],[31,1,31,8],[32,1,32,8],[33,1,33,8],[36,1,36,8],[37,1,37,8],[38,1,38,8],[39,1,39,8],[42,1,42,8],[43,1,43,8],[44,1,44,8],[45,1,45,8],[47,1,47,8],[48,1,48,8],[50,1,50,8],[51,1,51,8],[52,1,52,8],[58,0,58,9],[63,1,63,8],[64,7,64,8]]}
[]
[]
[{"$nulls":3},"Hypothèse de dimensionnement\nDRAINAGE DELTA"]
[]
[]
[]
[null,"Les cases bleues sont à renseigner en entrant un chiffre ou en utilisant la flèche de droite. "]
[null,"Notre préconisation se trouvera dans l'onglet \"Quantitatif des pièces - Offre\" (onglet en bas)."]
[]
[null,"Référence du projet :",null,"mon projet"]
[]
[{"$nulls":7},"PH : point haut"]
[{"$nulls":7},"PB : point bas"]
{"$rows_empty":8}
[{"$nulls":4},{"$f":"IF($H$22=\"Voirie \",#REF!,\"\")","v":""}]
[{"$nulls":4},{"$f":"IF(#REF!>2.5,\"\",\"hors coeff de securité !!!!\")","v":{"$error":"#REF!"}}]
[]
[]
[]
[null,"LONGUEUR TOTALE DE PH À PB (m) : a + b",{"$nulls":9},"SAISIR VALEUR ICI"]
[null,25]
[null,"Longueur entre le point haut et le point bas"]
[null,{"$f":"IF(B28=\"\",\"Se calcule automatiquement à partir de la longueur de la périphérie\",IF(B28<25,L39,IF(B28<50,L40,IF(B28<100,L41,IF(B28<150,L42,\"Contacter Draine-des-Bâtiments SVP\")))))","v":"2 : De 25 à 50 m"},{"$f":"IF(#REF!<25,C40,IF(#REF!<50,C41,IF(#REF!<100,C42,IF(#REF!<150,C43,\"CONTACTER FRAENKISCHE FRANCE\"))))","v":{"$error":"#REF!"}},{"$f":"IF(#REF!<25,D40,IF(#REF!<50,D41,IF(#REF!<100,D42,IF(#REF!<150,D43,\"CONTACTER FRAENKISCHE FRANCE\"))))","v":{"$error":"#REF!"}},{"$f":"IF(#REF!<25,E40,IF(#REF!<50,E41,IF(#REF!<100,E42,IF(#REF!<150,E43,\"CONTACTER FRAENKISCHE FRANCE\"))))","v":{"$error":"#REF!"}},{"$f":"IF(#REF!<25,F40,IF(#REF!<50,F41,IF(#REF!<100,F42,IF(#REF!<150,F43,\"CONTACTER FRAENKISCHE FRANCE\"))))","v":{"$error":"#REF!"}},{"$f":"IF(#REF!<25,G40,IF(#REF!<50,G41,IF(#REF!<100,G42,IF(#REF!<150,G43,\"CONTACTER FRAENKISCHE FRANCE\"))))","v":{"$error":"#REF!"}},{"$f":"IF(#REF!<25,H40,IF(#REF!<50,H41,IF(#REF!<100,H42,IF(#REF!<150,H43,\"CONTACTER FRAENKISCHE FRANCE\"))))","v":{"$error":"#REF!"}},{"$f":"IF(#REF!<25,I40,IF(#REF!<50,I41,IF(#REF!<100,I42,IF(#REF!<150,I43,\"CONTACTER FRAENKISCHE FRANCE\"))))","v":{"$error":"#REF!"}}]
[null,"LONGUEUR PÉRIMÈTRE DU BÂTIMENT (m)"]
[null,50]
[null,"PROFONDEUR (m)"]
[null,{"v":2,"d":"2.00"}]
[]
[]
[null,"Type de sol selon DIN 4095",{"$nulls":9},"longueur","1.Sols de fondation perméables","2.Sols de fondation peu perméables","3.Sols de fondation imperméables (et/ou avec couche aquifère)"]
[null,"1.Sols de fondation perméables",{"$nulls":9},"0 : A SELECTIONNER",0,0,0]
[null,"Apport d'eau",{"$nulls":9},"1 : moins de 25 m","DN 100","DN 100","DN 125"]
[null,{"$f":"VLOOKUP(B38,SOL_COMPLET,2)","v":"FAIBLE (0.05 l/s.m)"},{"$nulls":9},"2 : De 25 à 50 m","DN 100","DN 125","DN 160"]
[{"$nulls":11},"3 : De 50 à 100 m","DN 125","DN 160","DN 200"]
[{"$nulls":11},"4 : De 100 à 150 m","DN 160","DN 200","DN 200"]
[null,"NOMBRE D'ANGLES OU DE CHANGEMENTS DE DIRECTION",{"$nulls":9},{"$f":"VLOOKUP(B30,TABLEAU,2)","v":"DN 100"}]
[null,4,{"$nulls":9},{"$f":"VLOOKUP(B30,TABLEAU,3)","v":"DN 125"}]
[null,"NOMBRE DE CROISEMENTS EN \"T\" DU DRAIN",{"$nulls":9},{"$f":"VLOOKUP(B30,TABLEAU,4)","v":"DN 160"}]
[null,0]
[]
[null,"DIAMÈTRE DU DRAIN PROPOSE SELON ATec du CSTB 17.2/13-265"]
[null,{"$f":"IF(B30=L38,\"RENSEIGNER LES DONNEES TECHNIQUES\",IF(B38=L38,\"RENSEIGNER LES DONNEES TECHNIQUES\",IF(B38=M37,L43,IF(B38=N37,L44,L45))))","v":"DN 100"}]
[]
[null,"PRÉSENCE D'ISOLATION PAR L'EXT. DE LA PAROI ENTERRÉE"]
[null,"NON"]
[null,"Une fois toutes les cases remplies, voir l'offre adéquate dans l'onglet \"Quantitatif des pièces\"."]
[]
[]
[]
[]
[]
["www.doerken.fr"]
[]
[]
[]
[]
[null,"INFILTRATION"]
[null,"Perméabilité du sol (m/s)",{"$nulls":5},{"$f":"POWER(10,-5)","v":{"v":1e-05,"d":"0.000010"}}]
[null,"(attention le paramètre perméabilité est difficile à mesurer et doit faire l'objet d'une étude de sol)"]
[null,"cette étude doit faire l'objet d'une vérification et n'est donnée qu'à titre indicatif"]
[null,"Surface d'échange (m²)",{"$nulls":6},{"$f":"H40","v":{"v":0,"d":"0 m2"}}]
[null,"Débit infiltration en l/s   (Pe (m/s) * S (m²) * 1000)",{"$nulls":6},{"$f":"H65*I68*1000","v":{"v":0,"d":"0.00"}}]
[]
[null,"ABBATEMENT"]
[null,"Temps de vidange (min)",{"$nulls":6},{"$f":"(($H$12/1000)/#REF!)*60*60","v":{"$error":"#VALUE!"}}]

{"sheet":"Quantitatif des pièces - Offre","index":1,"n_rows":43,"n_cols":9,"rows_kept":43,"merged":[[19,2,19,3],[42,0,42,5]]}
[]
[]
[null,null,"Quantitatif des pièces - Offre"]
[]
[]
[]
[null,null,"Le ",{"$f":"TODAY()","v":"2022-03-09"}]
[]
[null,"Bonjour,"]
[]
[null,"Merci pour votre demande."]
[null,"Veuillez trouver dans le tableau ci-dessous nos préconisations de fourniture concernant votre projet,"]
[null,"en fonction des éléments que vous avez indiqués dans notre fiche de dimensionnement."]
[]
[null,"Ne comprend pas :"]
[null,"La fourniture des géotextiles, des dispositifs d'étanchéité autres que ceux préconiés, les "]
[null,"terrassements (déblais et remblais) suivant nos prescriptions de mise en œuvre."]
[]
[]
[null,"Projet :",{"$f":"IF(ISBLANK(Dimensionnement!D10),\"\",Dimensionnement!D10)","v":"mon projet"}]
[]
[null,"Référence Doerken","Désignation","Quantité projet"]
[null,{"$f":"VLOOKUP(Dimensionnement!$B$49,TUBE,3)","v":"02207777"},{"$f":"VLOOKUP(Dimensionnement!$B$49,TUBE,2)","v":"Opti-drain perforé Ø 100 mm longueur utile 2.5 m"},{"$f":"ROUNDUP(Dimensionnement!B28*2/2.5,0)","v":{"v":20,"d":"20.0"}},"(tubes)",{"$nulls":3},"Hauteur utile du fond"]
[null,{"$f":"+VLOOKUP(C24,OPTICONTROL,2)","v":"02207771"},"Opti-control sans décantation Hauteur utile 65 cm / Hauteur totale 80 cm",{"$f":"Dimensionnement!B44+Dimensionnement!B46","v":4},"(regards)",{"$nulls":3},{"$f":"+VLOOKUP(C24,Données!B13:F15,5)","v":0}]
[null,{"$f":"+VLOOKUP(C25,PRODUIT_COMPLET,2)","v":"02207773"},{"$f":"VLOOKUP(Dimensionnement!B49,REDUCTION_COMPLET,2)","v":"Réducteur Ø200/Ø100 Drain"},{"$f":"+Dimensionnement!B44*2+Dimensionnement!B46*3+1","v":9},"(réducteurs)"]
[null,{"$f":"+VLOOKUP(C26,PRODUIT_COMPLET,2)","v":"02207776"},"Rehausse pour Opti-control  Hauteur utile 80 cm / hauteur totale 105 cm",{"$f":"ROUNDUP((Dimensionnement!B34*100-'Quantitatif des pièces - Offre'!I24)/80,0)*D24","v":12},"(rehausses)"]
[null,"02202147","Membrane d'étanchéité à froid DELTA-THENE. \nRouleau de 1,00 x 20 m.",{"$f":"ROUNDUP(Dimensionnement!B32*Dimensionnement!B34*1.1/20,0)","v":6},"(rouleaux)"]
[null,"02202717","Primaire d'imprégnation DELTA-THENE. Bidon 5 litres",{"$f":"ROUNDUP(Dimensionnement!B32*Dimensionnement!B34*1.05*0.3/5,0)","v":7},"(bidons)"]
[null,"02202022","DELTA-FLEXX-BAND : Adhésif de protection haute de l'étanchéité DELTA-THENE. Rouleau de 10 m.",{"$f":"ROUNDUP(Dimensionnement!B32*1.05/10,0)","v":6},"(rouleaux)"]
[null,"06602492","Nappe de protection et drainage DELTA-MS DRAIN.\nRouleau de 2,00 m x 30 m.",{"$f":"ROUNDUP(Dimensionnement!B32*Dimensionnement!B34*1.1/60,0)","v":2},"(rouleaux)"]
[null,{"$f":"IF(Dimensionnement!$B$52=\"OUI\",Données!D28,Données!D27)","v":"06602318"},{"$f":"IF(Dimensionnement!$B$52=\"OUI\",Données!B28,Données!B27)","v":"Profilé de finition haute Solin alu DELTA. Tige de 2,00 m."},{"$f":"ROUNDUP(Dimensionnement!B32*1.05/2,0)","v":27},"(tiges)"]
[null,{"$f":"IF(Dimensionnement!$B$52=\"OUI\",Données!D30,Données!D29)","v":"06602670"},{"$f":"IF(Dimensionnement!$B$52=\"OUI\",Données!B30,Données!B29)","v":"Fixation en tête de nappe DELTA-MULTI-FIXX, clou acier fourni. Carton de 100 fixations."},{"$f":"IF(Dimensionnement!B52=\"NON\",ROUNDUP(Dimensionnement!B32*1.1*4/100,0),ROUNDUP(Dimensionnement!B32*Dimensionnement!B34*1.1/50,0))","v":3},"(boîtes)"]
{"$rows_empty":10}
["www.doerken.fr"]

{"sheet":"Données","index":2,"n_rows":46,"n_cols":5,"rows_kept":46,"hidden":true}
[]
[]
[]
[]
[]
[null,"Reference","Code Article"]
[null,"À SELECTIONNER",0]
[null,"Bouchon de sortie","02207772"]
[null,"Couvercle pour opti-control en Aluminium avec arête","nous consulter"]
[null,"Couvercle pour opti-control en Aluminium sans arête","nous consulter"]
[null,"Couvercle pour opti-control en PP","nous consulter"]
[null,"Manchon de réhausse","nous consulter"]
[null,"Opti-control avec décantation Hauteur utile 35 cm / Hauteur totale 80 cm","nous consulter"]
[null,"Opti-control en réhausse pour drainage sur plusieurs niveaux","nous consulter"]
[null,"Opti-control sans décantation Hauteur utile 65 cm / Hauteur totale 80 cm","02207771"]
["DN 100","Opti-drain perforé Ø 100 mm longueur utile 2.5 m","02207777"]
["DN 125","Opti-drain perforé Ø 125 mm longueur utile 2.5 m","02207779"]
["DN 160","Opti-drain perforé Ø 160 mm longueur utile 2.5 m","02207780"]
["DN 200","Opti-drain perforé Ø 200 mm longueur utile 2.5 m","02207778"]
["DN 100","Réducteur Ø200/Ø100 Drain","02207773"]
["DN 125","Réducteur Ø200/Ø125 tube lisse","02207774"]
["DN 160","Réducteur Ø200/Ø160 tube lisse","02207775"]
["DN 200","Réducteur Pas de réduction"]
[null,"Rehausse pour Opti-control  Hauteur utile 80 cm / hauteur totale 105 cm","02207776"]
[null,"Membrane d'étanchéité à froid DELTA-THENE. Rouleau de 1,00 x 20 m.",null,"02202147"]
[null,"Nappe de protection et drainage DELTA-MS DRAIN.\nRouleau de 2,00 m x 30 m."," ","06602492"]
[null,"Profilé de finition haute Solin alu DELTA. Tige de 2,00 m.",null,"06602318"]
[null,"Profilé de finition haute DELTA-TERRAXX. Tige de 2,00 m.",null,"06602213"]
[null,"Fixation en tête de nappe DELTA-MULTI-FIXX, clou acier fourni. Carton de 100 fixations.",null,"06602670"]
[null,"Vis synthétique DELTA-TERRAXX pour fixation de la nappe dans l'isolant de paroi. Carton de 50 vis.",null,"06602212"]
[]
[]
[null,"Longueur entre point haut et point bas"]
[null,"0 : À SÉLECTIONNER",0]
[null,"1 : moins de 25 m",0]
[null,"2 : De 25 à 50 m",1]
[null,"3 : De 50 à 100 m",2]
[null,"4 : De 100 à 150 m",3]
[]
[]
[]
[null,"type de sol et eau de sol","Apport",null,"présence d'isolant"]
[null,"0 : merci de choisir une réponse",0,null,"merci de choisir une réponse"]
[null,"1.Sols de fondation perméables","FAIBLE (0.05 l/s.m)",null,"OUI"]
[null,"2.Sols de fondation peu perméables","MOYENNE (0.1 l/s.m)",null,"NON"]
[null,"3.Sols de fondation imperméables (et/ou avec couche aquifère)","IMPORTANTE (0.2-0.3 l/s.m)"]